[Event "Early-Titled-Tuesday-Blitz-April-23-2024"]
[Site "Chess.com"]
[Date "2024.04.23"]
[Round "3"]
[White "Mikhail_Golubev"]
[Black "Aleksandar-Topalov"]
[Result "1/2-1/2"]
[WhiteElo "2604"]
[BlackElo "2381"]
[TimeControl "180+1"]
[EndTime "8:29:25 PDT"]
[Termination "Game drawn by repetition"]

1. e4 {[%clk 0:03:00.9]} 1... e6 {[%clk 0:02:59.8]} 2. d4 {[%clk 0:03:00.5]}
2... d5 {[%clk 0:02:59.8]} 3. e5 {[%clk 0:03:01.1]} 3... Ne7 {[%clk 0:02:58.9]}
4. Nf3 {[%clk 0:02:58.7]} 4... Qd7 {[%clk 0:02:58.9]} 5. Nc3 {[%clk 0:02:44]}
5... b6 {[%clk 0:02:55.4]} 6. Ne2 {[%clk 0:02:39.8]} 6... Ba6 {[%clk 0:02:54.9]}
7. g3 {[%clk 0:02:38.6]} 7... c5 {[%clk 0:02:54.8]} 8. c3 {[%clk 0:02:34.5]}
8... Nbc6 {[%clk 0:02:54.8]} 9. Bg2 {[%clk 0:02:30.7]} 9... Nf5 {[%clk
0:02:53.4]} 10. dxc5 {[%clk 0:02:10.9]} 10... bxc5 {[%clk 0:02:52.8]} 11. O-O
{[%clk 0:02:10.9]} 11... Be7 {[%clk 0:02:53.1]} 12. Re1 {[%clk 0:02:10.6]} 12...
O-O {[%clk 0:02:44.5]} 13. Nf4 {[%clk 0:02:10.3]} 13... Rab8 {[%clk 0:02:39.2]}
14. h4 {[%clk 0:02:00.8]} 14... Rfd8 {[%clk 0:02:17.9]} 15. h5 {[%clk
0:01:47.2]} 15... h6 {[%clk 0:02:17.3]} 16. Bh3 {[%clk 0:01:34.7]} 16... d4
{[%clk 0:02:13.4]} 17. Bxf5 {[%clk 0:01:34.7]} 17... exf5 {[%clk 0:02:13]} 18.
e6 {[%clk 0:01:33.7]} 18... fxe6 {[%clk 0:02:08.2]} 19. Nxe6 {[%clk 0:01:34.1]}
19... Re8 {[%clk 0:02:08]} 20. cxd4 {[%clk 0:01:32]} 20... cxd4 {[%clk
0:02:03.8]} 21. Nfxd4 {[%clk 0:01:25.1]} 21... Bf6 {[%clk 0:01:50.5]} 22. Nc5
{[%clk 0:01:01]} 22... Qxd4 {[%clk 0:01:11]} 23. Nxa6 {[%clk 0:01:01]} 23...
Rxe1+ {[%clk 0:00:44.4]} 24. Qxe1 {[%clk 0:01:00.8]} 24... Rb6 {[%clk
0:00:44.1]} 25. Be3 {[%clk 0:00:59.8]} 25... Qxb2 {[%clk 0:00:37.7]} 26. Bxb6
{[%clk 0:00:37.7]} 26... Qxa1 {[%clk 0:00:36.1]} 27. Qxa1 {[%clk 0:00:38.6]}
27... Bxa1 {[%clk 0:00:34.9]} 28. Be3 {[%clk 0:00:32.9]} 28... Bd4 {[%clk
0:00:31.3]} 29. Bxd4 {[%clk 0:00:15.6]} 29... Nxd4 {[%clk 0:00:31.2]} 30. f4
{[%clk 0:00:15.8]} 30... Kf7 {[%clk 0:00:28.9]} 31. Kf2 {[%clk 0:00:16]} 31...
Ke6 {[%clk 0:00:29.1]} 32. Ke3 {[%clk 0:00:16.3]} 32... Kd5 {[%clk 0:00:22.2]}
33. Nc7+ {[%clk 0:00:11.2]} 33... Kc4 {[%clk 0:00:22.4]} 34. Ne8 {[%clk
0:00:11.2]} 34... Ne6 {[%clk 0:00:20.6]} 35. Nd6+ {[%clk 0:00:11.1]} 35... Kc3
{[%clk 0:00:20.8]} 36. Nxf5 {[%clk 0:00:11.2]} 36... Kb2 {[%clk 0:00:21.1]} 37.
Ke4 {[%clk 0:00:10.8]} 37... Kxa2 {[%clk 0:00:19.9]} 38. Ke5 {[%clk 0:00:11.4]}
38... Nf8 {[%clk 0:00:18.8]} 39. Nxg7 {[%clk 0:00:11.2]} 39... Kb3 {[%clk
0:00:19.3]} 40. Ne6 {[%clk 0:00:10]} 40... a5 {[%clk 0:00:19.6]} 41. Nd4+ {[%clk
0:00:05.8]} 41... Kc4 {[%clk 0:00:19.6]} 42. Nc2 {[%clk 0:00:05.9]} 42... Kc3
{[%clk 0:00:19.1]} 43. Nd4 {[%clk 0:00:04.9]} 43... a4 {[%clk 0:00:18.3]} 44.
Nb5+ {[%clk 0:00:03.9]} 44... Kb4 {[%clk 0:00:18.3]} 45. Nd4 {[%clk 0:00:03.8]}
45... Kc4 {[%clk 0:00:16.6]} 46. Nc2 {[%clk 0:00:03.3]} 46... Kc3 {[%clk
0:00:16.5]} 47. Nd4 {[%clk 0:00:03.5]} 47... Kc4 {[%clk 0:00:15.8]} 48. Nc2
{[%clk 0:00:03.8]} 48... Kc3 {[%clk 0:00:15.9]} 49. Nd4 {[%clk 0:00:04.4]} 49...
Kc4 {[%clk 0:00:16.3]} 1/2-1/2

[Event "Early-Titled-Tuesday-Blitz-April-23-2024"]
[Site "Chess.com"]
[Date "2024.04.23"]
[Round "3"]
[White "Bykov_Egor"]
[Black "Mikhail_Bryakin"]
[Result "1/2-1/2"]
[WhiteElo "2621"]
[BlackElo "2864"]
[TimeControl "180+1"]
[EndTime "8:29:27 PDT"]
[Termination "Game drawn by repetition"]

1. d4 {[%clk 0:03:00.9]} 1... Nf6 {[%clk 0:02:59.1]} 2. c4 {[%clk 0:03:01.4]}
2... e5 {[%clk 0:02:59.3]} 3. dxe5 {[%clk 0:03:00.6]} 3... Ng4 {[%clk
0:03:00.1]} 4. Bf4 {[%clk 0:03:00.8]} 4... Bb4+ {[%clk 0:02:58.5]} 5. Nd2 {[%clk
0:02:50.9]} 5... Nc6 {[%clk 0:02:58.7]} 6. Nf3 {[%clk 0:02:49.8]} 6... Qe7
{[%clk 0:02:59]} 7. e3 {[%clk 0:02:48]} 7... Ngxe5 {[%clk 0:02:58.7]} 8. Be2
{[%clk 0:02:32.9]} 8... O-O {[%clk 0:02:55.2]} 9. O-O {[%clk 0:02:30.6]} 9...
Bxd2 {[%clk 0:02:46.2]} 10. Qxd2 {[%clk 0:02:22.8]} 10... a5 {[%clk 0:02:46.7]}
11. Rac1 {[%clk 0:02:17.4]} 11... d6 {[%clk 0:02:47.1]} 12. Qc3 {[%clk
0:02:12.3]} 12... b6 {[%clk 0:02:45.2]} 13. Nxe5 {[%clk 0:01:47.8]} 13... Nxe5
{[%clk 0:02:44.1]} 14. c5 {[%clk 0:01:42.9]} 14... Be6 {[%clk 0:02:18.3]} 15.
Bxe5 {[%clk 0:01:33]} 15... dxe5 {[%clk 0:02:18.3]} 16. Qxe5 {[%clk 0:01:30.7]}
16... Rad8 {[%clk 0:02:18.4]} 17. Bc4 {[%clk 0:01:20.3]} 17... Rfe8 {[%clk
0:02:17.9]} 18. Bxe6 {[%clk 0:01:19]} 18... Qxe6 {[%clk 0:02:12]} 19. Qxe6
{[%clk 0:00:58.7]} 19... Rxe6 {[%clk 0:02:10.8]} 20. Rfd1 {[%clk 0:00:57]} 20...
Rxd1+ {[%clk 0:02:05.7]} 21. Rxd1 {[%clk 0:00:57.9]} 21... Kf8 {[%clk
0:02:06.2]} 22. cxb6 {[%clk 0:00:55.6]} 22... Rxb6 {[%clk 0:02:01.6]} 23. Rd2
{[%clk 0:00:55.3]} 23... Ke7 {[%clk 0:02:01]} 24. Kf1 {[%clk 0:00:55.7]} 24...
Rc6 {[%clk 0:02:00.4]} 25. Ke2 {[%clk 0:00:55.3]} 25... Rc1 {[%clk 0:02:01.1]}
26. h4 {[%clk 0:00:46.8]} 26... h5 {[%clk 0:02:00.8]} 27. Kd3 {[%clk 0:00:45]}
27... Kd6 {[%clk 0:01:50.5]} 28. Ke4+ {[%clk 0:00:39.6]} 28... Ke6 {[%clk
0:01:50.8]} 29. g3 {[%clk 0:00:40]} 29... g6 {[%clk 0:01:48.1]} 30. Kf4 {[%clk
0:00:39]} 30... Rc5 {[%clk 0:01:38.6]} 31. e4 {[%clk 0:00:38.2]} 31... a4 {[%clk
0:01:32.2]} 32. Rd4 {[%clk 0:00:31.5]} 32... Rc2 {[%clk 0:01:32.1]} 33. f3
{[%clk 0:00:30.5]} 33... Rxb2 {[%clk 0:01:26]} 34. Rxa4 {[%clk 0:00:30.5]} 34...
c5 {[%clk 0:01:16.3]} 35. Ra6+ {[%clk 0:00:27.6]} 35... Ke7 {[%clk 0:01:16.5]}
36. Ke5 {[%clk 0:00:26.8]} 36... c4 {[%clk 0:01:13.8]} 37. Ra7+ {[%clk
0:00:24.2]} 37... Kf8 {[%clk 0:01:12.9]} 38. Kd4 {[%clk 0:00:23.9]} 38... Rf2
{[%clk 0:01:10.3]} 39. Ra3 {[%clk 0:00:21.2]} 39... c3 {[%clk 0:01:10.9]} 40.
Kxc3 {[%clk 0:00:18.6]} 40... Rxf3+ {[%clk 0:01:10.9]} 41. Kb4 {[%clk
0:00:19.3]} 41... Rf1 {[%clk 0:01:11]} 42. Re3 {[%clk 0:00:19.1]} 42... Rb1+
{[%clk 0:01:06]} 43. Kc5 {[%clk 0:00:18.7]} 43... Ra1 {[%clk 0:01:03.4]} 44. a3
{[%clk 0:00:18.1]} 44... Ke7 {[%clk 0:01:04.1]} 45. Kb4 {[%clk 0:00:15.1]} 45...
Kd6 {[%clk 0:01:04.6]} 46. a4 {[%clk 0:00:14.6]} 46... Rb1+ {[%clk 0:01:05.2]}
47. Rb3 {[%clk 0:00:14.3]} 47... Re1 {[%clk 0:01:05.8]} 48. Kb5 {[%clk
0:00:13.5]} 48... Rxe4 {[%clk 0:01:04.5]} 49. a5 {[%clk 0:00:14.1]} 49... Kc7
{[%clk 0:01:05.2]} 50. a6 {[%clk 0:00:11.1]} 50... Kb8 {[%clk 0:01:00.1]} 51.
Kc6+ {[%clk 0:00:09.2]} 51... Ka8 {[%clk 0:01:00.6]} 52. Ra3 {[%clk 0:00:08.7]}
52... f5 {[%clk 0:00:54.9]} 53. Kb6 {[%clk 0:00:05.6]} 53... Rb4+ {[%clk
0:00:51]} 54. Kc5 {[%clk 0:00:05.8]} 54... Rg4 {[%clk 0:00:51.2]} 55. Re3 {[%clk
0:00:06.1]} 55... f4 {[%clk 0:00:44.6]} 56. Re8+ {[%clk 0:00:02.5]} 56... Ka7
{[%clk 0:00:45.1]} 57. Kb5 {[%clk 0:00:02.9]} 57... Rxg3 {[%clk 0:00:43.2]} 58.
Re7+ {[%clk 0:00:03.3]} 58... Kb8 {[%clk 0:00:42.9]} 59. Re8+ {[%clk 0:00:04]}
59... Ka7 {[%clk 0:00:42.8]} 60. Re7+ {[%clk 0:00:04.2]} 60... Kb8 {[%clk
0:00:43.3]} 61. Re8+ {[%clk 0:00:04.8]} 61... Ka7 {[%clk 0:00:40.5]} 1/2-1/2

[Event "Early-Titled-Tuesday-Blitz-April-23-2024"]
[Site "Chess.com"]
[Date "2024.04.23"]
[Round "3"]
[White "Flaccidmoves"]
[Black "IamSchrodingersCat"]
[Result "1-0"]
[WhiteElo "2459"]
[BlackElo "2608"]
[TimeControl "180+1"]
[EndTime "8:29:27 PDT"]
[Termination "Flaccidmoves won by resignation"]

1. d4 {[%clk 0:03:00.9]} 1... Nf6 {[%clk 0:02:59.8]} 2. c4 {[%clk 0:03:00.6]}
2... g6 {[%clk 0:02:59.9]} 3. Nc3 {[%clk 0:03:01.1]} 3... Bg7 {[%clk 0:02:59.9]}
4. e4 {[%clk 0:02:59.2]} 4... d6 {[%clk 0:03:00]} 5. Nf3 {[%clk 0:02:59.7]} 5...
O-O {[%clk 0:02:59.4]} 6. h3 {[%clk 0:03:00.4]} 6... Na6 {[%clk 0:02:57.8]} 7.
Be3 {[%clk 0:02:56.9]} 7... e5 {[%clk 0:02:56.9]} 8. d5 {[%clk 0:02:56.5]} 8...
Nc5 {[%clk 0:02:56.4]} 9. Nd2 {[%clk 0:02:56.2]} 9... a5 {[%clk 0:02:52.3]} 10.
g4 {[%clk 0:02:48.1]} 10... h5 {[%clk 0:02:50.7]} 11. g5 {[%clk 0:02:44.8]}
11... Nh7 {[%clk 0:02:41.7]} 12. h4 {[%clk 0:02:44.6]} 12... Bg4 {[%clk
0:02:36.1]} 13. f3 {[%clk 0:02:30.2]} 13... Bd7 {[%clk 0:02:35.6]} 14. Bxc5
{[%clk 0:02:04.4]} 14... dxc5 {[%clk 0:02:34.1]} 15. Bh3 {[%clk 0:02:04.8]}
15... Bxh3 {[%clk 0:02:17.6]} 16. Rxh3 {[%clk 0:02:05.7]} 16... f6 {[%clk
0:02:13.8]} 17. Qb3 {[%clk 0:01:19.5]} 17... b6 {[%clk 0:02:03.5]} 18. gxf6
{[%clk 0:01:03.9]} 18... Qxf6 {[%clk 0:02:04.4]} 19. O-O-O {[%clk 0:01:00.1]}
19... Bh6 {[%clk 0:02:04]} 20. d6 {[%clk 0:00:53]} 20... Qxd6 {[%clk 0:01:56.1]}
21. Nd5 {[%clk 0:00:49.7]} 21... Kh8 {[%clk 0:01:51.3]} 22. Kb1 {[%clk
0:00:48.6]} 22... a4 {[%clk 0:01:36.9]} 23. Qc2 {[%clk 0:00:44.2]} 23... Qd7
{[%clk 0:01:19.4]} 24. Rg3 {[%clk 0:00:41]} 24... Qf7 {[%clk 0:01:17]} 25. Rdg1
{[%clk 0:00:39.5]} 25... Rg8 {[%clk 0:01:17.4]} 26. Qc3 {[%clk 0:00:38.6]} 26...
Rae8 {[%clk 0:01:12.9]} 27. Nf1 {[%clk 0:00:35.7]} 27... Nf6 {[%clk 0:01:05.8]}
28. Nfe3 {[%clk 0:00:34.4]} 28... Kh7 {[%clk 0:01:00.4]} 29. Nxf6+ {[%clk
0:00:33.7]} 29... Qxf6 {[%clk 0:01:01.3]} 30. Nd5 {[%clk 0:00:34.2]} 30... Qf7
{[%clk 0:01:00.3]} 31. a3 {[%clk 0:00:30.7]} 31... Re6 {[%clk 0:00:48.6]} 32.
Ka2 {[%clk 0:00:29.9]} 32... Bf4 {[%clk 0:00:41.5]} 33. R3g2 {[%clk 0:00:27]}
33... Rb8 {[%clk 0:00:39.1]} 34. Qc2 {[%clk 0:00:26.4]} 34... c6 {[%clk
0:00:36.5]} 35. Nxf4 {[%clk 0:00:22.7]} 35... Qxf4 {[%clk 0:00:32.7]} 36. Qd3
{[%clk 0:00:19.4]} 36... Qf7 {[%clk 0:00:28.4]} 37. Rg5 {[%clk 0:00:18.3]} 37...
b5 {[%clk 0:00:25.4]} 38. Ka1 {[%clk 0:00:16.3]} 38... Rf6 {[%clk 0:00:19.4]}
39. Rxe5 {[%clk 0:00:15.9]} 39... Rxf3 {[%clk 0:00:17]} 40. Qd6 {[%clk
0:00:15.8]} 40... Rg8 {[%clk 0:00:09.9]} 41. Re7 {[%clk 0:00:15.6]} 41... Qxe7
{[%clk 0:00:08.6]} 42. Qxe7+ {[%clk 0:00:15.4]} 42... Rg7 {[%clk 0:00:09.5]} 43.
Qxc5 {[%clk 0:00:15]} 43... Rgf7 {[%clk 0:00:06.3]} 44. cxb5 {[%clk 0:00:14.4]}
44... cxb5 {[%clk 0:00:05.6]} 45. Qxb5 {[%clk 0:00:14.4]} 45... R3f6 {[%clk
0:00:06.4]} 46. e5 {[%clk 0:00:14.4]} 46... Re6 {[%clk 0:00:06.5]} 47. Rd1
{[%clk 0:00:14.2]} 47... Rfe7 {[%clk 0:00:07.4]} 48. Rd7 {[%clk 0:00:14]} 48...
Kh6 {[%clk 0:00:05]} 49. Rxe7 {[%clk 0:00:14]} 49... Rxe7 {[%clk 0:00:05.9]} 50.
Qd5 {[%clk 0:00:14.2]} 50... Re8 {[%clk 0:00:05.8]} 51. Qd6 {[%clk 0:00:14.2]}
51... Re6 {[%clk 0:00:04.2]} 52. Qxe6 {[%clk 0:00:13.7]} 1-0

[Event "Early-Titled-Tuesday-Blitz-April-23-2024"]
[Site "Chess.com"]
[Date "2024.04.23"]
[Round "3"]
[White "mortngabriel"]
[Black "MarlonJodar"]
[Result "1-0"]
[WhiteElo "2477"]
[BlackElo "2284"]
[TimeControl "180+1"]
[EndTime "8:29:27 PDT"]
[Termination "mortngabriel won on time"]

1. e4 {[%clk 0:03:00.9]} 1... e5 {[%clk 0:02:59.8]} 2. f4 {[%clk 0:03:01.2]}
2... exf4 {[%clk 0:02:59.6]} 3. Nf3 {[%clk 0:03:01]} 3... Nf6 {[%clk 0:02:59.7]}
4. e5 {[%clk 0:03:01.1]} 4... Nh5 {[%clk 0:02:59.7]} 5. d4 {[%clk 0:03:01.8]}
5... d6 {[%clk 0:02:59.5]} 6. Qe2 {[%clk 0:03:02.3]} 6... d5 {[%clk 0:02:58.2]}
7. Nc3 {[%clk 0:02:54.8]} 7... Be7 {[%clk 0:02:54.8]} 8. Bd2 {[%clk 0:02:42.8]}
8... c6 {[%clk 0:02:34.4]} 9. O-O-O {[%clk 0:02:41.8]} 9... b5 {[%clk
0:02:34.3]} 10. Qf2 {[%clk 0:02:11.6]} 10... Bg4 {[%clk 0:02:15]} 11. Bd3 {[%clk
0:02:03.9]} 11... Na6 {[%clk 0:02:04.8]} 12. Ne2 {[%clk 0:01:41.2]} 12... Nb4
{[%clk 0:01:41.6]} 13. Bxb4 {[%clk 0:01:14.6]} 13... Bxb4 {[%clk 0:01:42.5]} 14.
h3 {[%clk 0:00:55.8]} 14... Be6 {[%clk 0:01:35.2]} 15. Kb1 {[%clk 0:00:47.3]}
15... Be7 {[%clk 0:01:13.6]} 16. Nh2 {[%clk 0:00:37.7]} 16... Bh4 {[%clk
0:01:07.1]} 17. Qf3 {[%clk 0:00:36.5]} 17... Ng3 {[%clk 0:01:04]} 18. Nxg3
{[%clk 0:00:30.4]} 18... fxg3 {[%clk 0:00:54.9]} 19. Nf1 {[%clk 0:00:27.1]}
19... Qg5 {[%clk 0:00:53.9]} 20. Ne3 {[%clk 0:00:21.9]} 20... O-O {[%clk
0:00:50.1]} 21. Rdf1 {[%clk 0:00:22]} 21... f6 {[%clk 0:00:47.3]} 22. exf6
{[%clk 0:00:12.2]} 22... Rxf6 {[%clk 0:00:48.2]} 23. Qe2 {[%clk 0:00:12]} 23...
Raf8 {[%clk 0:00:25.6]} 24. Ng4 {[%clk 0:00:11.2]} 24... Bxg4 {[%clk 0:00:18.8]}
25. hxg4 {[%clk 0:00:12.1]} 25... Rf2 {[%clk 0:00:11.9]} 26. Qe6+ {[%clk
0:00:12.5]} 26... Kh8 {[%clk 0:00:12.1]} 27. Qxc6 {[%clk 0:00:08.4]} 27... Rxf1+
{[%clk 0:00:09]} 28. Rxf1 {[%clk 0:00:09.3]} 28... g6 {[%clk 0:00:04.7]} 29.
Rxf8+ {[%clk 0:00:08.2]} 29... Kg7 {[%clk 0:00:05.1]} 30. Rf1 {[%clk 0:00:05.6]}
30... Qxg4 {[%clk 0:00:03.1]} 31. Qc7+ {[%clk 0:00:04.5]} 31... Kh6 {[%clk
0:00:02.9]} 32. Qf4+ {[%clk 0:00:05]} 32... Qxf4 {[%clk 0:00:02.8]} 33. Rxf4
{[%clk 0:00:05.9]} 33... Kg5 {[%clk 0:00:03.1]} 34. Rf3 {[%clk 0:00:04.8]} 34...
Kg4 {[%clk 0:00:02.2]} 35. Kc1 {[%clk 0:00:03.9]} 35... h5 {[%clk 0:00:02.6]}
36. Bxg6 {[%clk 0:00:03.8]} 36... Bg5+ {[%clk 0:00:02.5]} 37. Kd1 {[%clk
0:00:03.8]} 37... h4 {[%clk 0:00:02.8]} 38. Bf7 {[%clk 0:00:03]} 38... Bf4
{[%clk 0:00:02.4]} 39. Bxd5 {[%clk 0:00:02.6]} 39... Kg5 {[%clk 0:00:03.3]} 40.
Rxf4 {[%clk 0:00:02.3]} 40... Kxf4 {[%clk 0:00:03.2]} 41. Be6 {[%clk 0:00:03]}
41... Ke3 {[%clk 0:00:02.6]} 42. Bh3 {[%clk 0:00:03.9]} 42... Kxd4 {[%clk
0:00:02.7]} 43. Kd2 {[%clk 0:00:04.8]} 43... b4 {[%clk 0:00:01.4]} 44. c3+
{[%clk 0:00:05.6]} 44... bxc3+ {[%clk 0:00:01.7]} 45. bxc3+ {[%clk 0:00:06.5]}
45... Ke4 {[%clk 0:00:01.3]} 46. Kc2 {[%clk 0:00:07.4]} 46... Ke3 {[%clk
0:00:01.5]} 47. Kb3 {[%clk 0:00:07.7]} 47... Kd3 {[%clk 0:00:01.6]} 48. Kb4
{[%clk 0:00:08.3]} 1-0

[Event "Early-Titled-Tuesday-Blitz-April-23-2024"]
[Site "Chess.com"]
[Date "2024.04.23"]
[Round "3"]
[White "LuisFSiles"]
[Black "Crazy_girl99"]
[Result "1-0"]
[WhiteElo "2465"]
[BlackElo "2615"]
[TimeControl "180+1"]
[EndTime "8:29:28 PDT"]
[Termination "LuisFSiles won by resignation"]

1. e4 {[%clk 0:03:00.9]} 1... e5 {[%clk 0:03:00.1]} 2. Nf3 {[%clk 0:03:00.2]}
2... Nc6 {[%clk 0:03:00.8]} 3. Nc3 {[%clk 0:03:00.3]} 3... Nf6 {[%clk
0:03:00.6]} 4. Bc4 {[%clk 0:02:59.6]} 4... Bc5 {[%clk 0:03:00.3]} 5. d3 {[%clk
0:02:58.9]} 5... d6 {[%clk 0:03:00.7]} 6. h3 {[%clk 0:02:56.2]} 6... h6 {[%clk
0:02:56.6]} 7. a4 {[%clk 0:02:53.2]} 7... a6 {[%clk 0:02:55]} 8. Nd5 {[%clk
0:02:51.5]} 8... Nxd5 {[%clk 0:02:53.1]} 9. Bxd5 {[%clk 0:02:51.6]} 9... Ne7
{[%clk 0:02:52.7]} 10. Bb3 {[%clk 0:02:38.1]} 10... Ng6 {[%clk 0:02:52.5]} 11.
d4 {[%clk 0:02:28.5]} 11... exd4 {[%clk 0:02:42.4]} 12. Nxd4 {[%clk 0:02:29.4]}
12... Qf6 {[%clk 0:02:38.6]} 13. Be3 {[%clk 0:02:29.3]} 13... O-O {[%clk
0:02:36.7]} 14. c3 {[%clk 0:02:04.6]} 14... Re8 {[%clk 0:02:35]} 15. Qf3 {[%clk
0:02:03.5]} 15... Qxf3 {[%clk 0:01:26.4]} 16. gxf3 {[%clk 0:02:02.5]} 16... Kf8
{[%clk 0:01:10.4]} 17. Ke2 {[%clk 0:01:54.5]} 17... c6 {[%clk 0:01:02.9]} 18.
Rad1 {[%clk 0:01:41.7]} 18... a5 {[%clk 0:00:44.6]} 19. Nc2 {[%clk 0:01:36.8]}
19... Bxe3 {[%clk 0:00:40.3]} 20. fxe3 {[%clk 0:01:33]} 20... Be6 {[%clk
0:00:38.8]} 21. Bxe6 {[%clk 0:01:30.8]} 21... Rxe6 {[%clk 0:00:39.7]} 22. h4
{[%clk 0:01:28.8]} 22... d5 {[%clk 0:00:34.7]} 23. h5 {[%clk 0:01:27.1]} 23...
Ne7 {[%clk 0:00:34.7]} 24. Nd4 {[%clk 0:01:23.1]} 24... Re5 {[%clk 0:00:34.9]}
25. exd5 {[%clk 0:01:16.7]} 25... Nxd5 {[%clk 0:00:33.2]} 26. e4 {[%clk
0:01:11.9]} 26... Nf4+ {[%clk 0:00:31.5]} 27. Ke3 {[%clk 0:01:10.2]} 27... Nd5+
{[%clk 0:00:11.8]} 28. Kf2 {[%clk 0:01:06.3]} 28... Nf6 {[%clk 0:00:12]} 29. Nf5
{[%clk 0:01:03]} 29... Rae8 {[%clk 0:00:10.8]} 30. Rd6 {[%clk 0:00:58.5]} 30...
R5e6 {[%clk 0:00:08]} 31. Rhd1 {[%clk 0:00:58.1]} 31... Nxh5 {[%clk 0:00:07.4]}
32. Rxe6 {[%clk 0:00:53.8]} 32... fxe6 {[%clk 0:00:07]} 33. Nd6 {[%clk
0:00:50.5]} 33... Re7 {[%clk 0:00:07.6]} 34. Nc8 {[%clk 0:00:49.7]} 34... Rc7
{[%clk 0:00:04.2]} 35. Rd8+ {[%clk 0:00:48.2]} 35... Kf7 {[%clk 0:00:04.7]} 36.
e5 {[%clk 0:00:45.8]} 36... Nf4 {[%clk 0:00:03.7]} 37. Nd6+ {[%clk 0:00:46]}
37... Kg6 {[%clk 0:00:04.2]} 38. Rf8 {[%clk 0:00:43.9]} 38... Nh3+ {[%clk
0:00:02.5]} 39. Ke3 {[%clk 0:00:43.8]} 39... Ng5 {[%clk 0:00:03.4]} 40. f4
{[%clk 0:00:43.1]} 40... Nf7 {[%clk 0:00:02.9]} 41. Re8 {[%clk 0:00:42.4]} 41...
Nxd6 {[%clk 0:00:02.1]} 42. Rxe6+ {[%clk 0:00:42.6]} 42... Kf5 {[%clk
0:00:01.8]} 43. Rxd6 {[%clk 0:00:43.3]} 43... Re7 {[%clk 0:00:02]} 44. Rd8
{[%clk 0:00:40.5]} 44... g5 {[%clk 0:00:02.3]} 45. Rf8+ {[%clk 0:00:40.7]} 45...
Kg4 {[%clk 0:00:02.7]} 46. Ke4 {[%clk 0:00:39.4]} 46... gxf4 {[%clk 0:00:03]}
47. Rxf4+ {[%clk 0:00:38.9]} 47... Kg5 {[%clk 0:00:03.7]} 48. Rf5+ {[%clk
0:00:38.8]} 48... Kg4 {[%clk 0:00:03.8]} 49. Rf6 {[%clk 0:00:38.9]} 49... h5
{[%clk 0:00:04.2]} 50. e6 {[%clk 0:00:39.2]} 50... h4 {[%clk 0:00:04.4]} 51. Rh6
{[%clk 0:00:38.7]} 51... h3 {[%clk 0:00:04.6]} 52. Ke5 {[%clk 0:00:39.1]} 52...
Kg3 {[%clk 0:00:04.4]} 53. Kd6 {[%clk 0:00:39.3]} 53... Re8 {[%clk 0:00:04.7]}
54. e7 {[%clk 0:00:39.7]} 54... h2 {[%clk 0:00:04.9]} 55. Kd7 {[%clk 0:00:40.1]}
55... Rg8 {[%clk 0:00:05]} 56. e8=Q {[%clk 0:00:38.9]} 56... Rxe8 {[%clk
0:00:05.7]} 57. Kxe8 {[%clk 0:00:39.2]} 57... Kg2 {[%clk 0:00:06.6]} 58. Kd7
{[%clk 0:00:39]} 58... h1=Q {[%clk 0:00:07.5]} 59. Rxh1 {[%clk 0:00:38.2]} 59...
Kxh1 {[%clk 0:00:08.4]} 60. Kc7 {[%clk 0:00:38.2]} 60... b5 {[%clk 0:00:08.1]}
61. Kxc6 {[%clk 0:00:37.5]} 61... bxa4 {[%clk 0:00:08.4]} 62. Kb5 {[%clk
0:00:37.7]} 62... a3 {[%clk 0:00:08.4]} 63. bxa3 {[%clk 0:00:37.3]} 63... Kg2
{[%clk 0:00:09.3]} 64. Kxa5 {[%clk 0:00:37.2]} 64... Kf3 {[%clk 0:00:10.2]} 65.
Kb6 {[%clk 0:00:35.5]} 65... Ke4 {[%clk 0:00:11.1]} 66. c4 {[%clk 0:00:35.8]}
1-0

[Event "Early-Titled-Tuesday-Blitz-April-23-2024"]
[Site "Chess.com"]
[Date "2024.04.23"]
[Round "3"]
[White "Schattman"]
[Black "familijatop71"]
[Result "0-1"]
[WhiteElo "2477"]
[BlackElo "2310"]
[TimeControl "180+1"]
[EndTime "8:29:29 PDT"]
[Termination "familijatop71 won on time"]

1. f4 {[%clk 0:03:00.9]} 1... e5 {[%clk 0:02:58]} 2. fxe5 {[%clk 0:03:00.7]}
2... d6 {[%clk 0:02:58.5]} 3. exd6 {[%clk 0:03:01.6]} 3... Bxd6 {[%clk
0:02:58.9]} 4. Nf3 {[%clk 0:03:02.5]} 4... g5 {[%clk 0:02:59.2]} 5. g3 {[%clk
0:03:03.1]} 5... g4 {[%clk 0:02:57.4]} 6. Nh4 {[%clk 0:03:02.5]} 6... Ne7 {[%clk
0:02:57.5]} 7. d4 {[%clk 0:03:02.5]} 7... Ng6 {[%clk 0:02:41.2]} 8. Ng2 {[%clk
0:03:02.3]} 8... Nc6 {[%clk 0:02:11.8]} 9. Be3 {[%clk 0:03:01.9]} 9... h5 {[%clk
0:01:29.9]} 10. Qd2 {[%clk 0:03:02]} 10... Bd7 {[%clk 0:00:40.2]} 11. Nc3 {[%clk
0:03:01.6]} 11... Qe7 {[%clk 0:00:39.2]} 12. O-O-O {[%clk 0:02:54.1]} 12...
O-O-O {[%clk 0:00:39]} 13. Bg5 {[%clk 0:02:50.5]} 13... f6 {[%clk 0:00:39]} 14.
Nd5 {[%clk 0:02:50.6]} 14... Qe6 {[%clk 0:00:35.9]} 15. Nxf6 {[%clk 0:01:48.2]}
15... Qxa2 {[%clk 0:00:30.5]} 16. Qc3 {[%clk 0:01:48]} 16... Bb4 {[%clk
0:00:26.8]} 17. Nxd7 {[%clk 0:01:45.6]} 17... Bxc3 {[%clk 0:00:21.1]} 18. bxc3
{[%clk 0:01:45.5]} 18... Rxd7 {[%clk 0:00:21.4]} 19. e3 {[%clk 0:01:41]} 19...
Na5 {[%clk 0:00:21]} 20. Kd2 {[%clk 0:01:31.8]} 20... Nb3+ {[%clk 0:00:20.3]}
21. Ke1 {[%clk 0:01:17.5]} 21... Qxc2 {[%clk 0:00:19]} 22. Bd3 {[%clk
0:01:17.6]} 22... Qxc3+ {[%clk 0:00:18.6]} 23. Kf2 {[%clk 0:01:18.1]} 23... Rf8+
{[%clk 0:00:18]} 24. Nf4 {[%clk 0:01:18.4]} 24... Nxf4 {[%clk 0:00:17.2]} 25.
Bxf4 {[%clk 0:01:18.6]} 25... Rxf4+ {[%clk 0:00:16.7]} 26. gxf4 {[%clk
0:01:17.7]} 26... h4 {[%clk 0:00:15.5]} 27. Rhg1 {[%clk 0:01:14.9]} 27... Qb2+
{[%clk 0:00:14]} 28. Ke1 {[%clk 0:01:02.8]} 28... Qxh2 {[%clk 0:00:11.6]} 29.
Bf5 {[%clk 0:01:02.7]} 29... g3 {[%clk 0:00:09.2]} 30. Rf1 {[%clk 0:01:02.4]}
30... Kd8 {[%clk 0:00:08.2]} 31. Bxd7 {[%clk 0:00:56]} 31... Kxd7 {[%clk
0:00:08.5]} 32. f5 {[%clk 0:00:43.9]} 32... g2 {[%clk 0:00:08.1]} 33. f6 {[%clk
0:00:44.2]} 33... gxf1=Q+ {[%clk 0:00:07.7]} 34. Kxf1 {[%clk 0:00:44.6]} 34...
Qh3+ {[%clk 0:00:07.7]} 35. Ke2 {[%clk 0:00:44.8]} 35... Qg4+ {[%clk 0:00:07.8]}
36. Ke1 {[%clk 0:00:45.1]} 36... Qf5 {[%clk 0:00:06.9]} 37. Ke2 {[%clk
0:00:42.2]} 37... Qxf6 {[%clk 0:00:07.2]} 38. Re1 {[%clk 0:00:42.4]} 38... Qg5
{[%clk 0:00:07.3]} 39. Rf1 {[%clk 0:00:41.8]} 39... h3 {[%clk 0:00:07.5]} 40.
Rf7+ {[%clk 0:00:41.1]} 40... Ke6 {[%clk 0:00:07.3]} 41. Rf4 {[%clk 0:00:42]}
41... Qxf4 {[%clk 0:00:06.9]} 42. exf4 {[%clk 0:00:41.9]} 42... h2 {[%clk
0:00:07.4]} 43. Kf2 {[%clk 0:00:41.8]} 43... h1=Q {[%clk 0:00:07.8]} 0-1